fUSD/lending_fUSD_20250510
["ID","MTS","AMOUNT","RATE_DAILY","PERIOD"]
[360536348,1746858643176,-1424.93,0.00019999,2]
[360536349,1746858643186,-1424.93,0.00019999,2]
[360536350,1746858643195,-1424.93,0.00019999,2]
[360536351,1746858643208,-1424.93,0.00019999,2]
[360536352,1746858643218,-1424.93,0.00019999,2]
[360536353,1746858643227,-1424.93,0.00019999,2]
[360536354,1746858643237,-1424.93,0.00019999,2]
[360536355,1746858643247,-1424.93,0.00019999,2]
[360536356,1746858643256,-1424.93,0.00019999,2]
[360536357,1746858643267,-1424.93,0.00019999,2]
[360536358,1746858643279,-1424.93,0.00019999,2]
[360536359,1746858643291,-1424.93,0.00019999,2]
[360536360,1746858643302,-1424.93,0.00019999,2]
[360536361,1746858643312,-1424.93,0.00019999,2]
[360536362,1746858643324,-1424.93,0.00019999,2]
[360536363,1746858643336,-1424.93,0.00019999,2]
[360536364,1746858643347,-1424.93,0.00019999,2]
[360536365,1746858643357,-1425.14613552,0.00019999,2]
[360536366,1746858643369,-400.0,0.00019999,2]
[360536367,1746858643380,-400.0,0.00019999,2]
[360536368,1746858643390,-154.00084683,0.00019999,2]
[360536369,1746858643400,-317.0,0.00019999,2]
[360536370,1746858643409,-300.03,0.00019999,2]
[360536371,1746858643418,-400.0,0.00019999,2]
[360536372,1746858643427,-450.0,0.00019999,2]
[360536373,1746858643436,-400.0,0.00019999,2]
[360536374,1746858643445,-282.42,0.00019999,2]
[360536375,1746858643455,-400.0,0.00019999,2]
[360536376,1746858643464,-400.0,0.00019999,2]
[360536377,1746858643474,-400.0,0.00019999,2]
[360536378,1746858643483,-400.0,0.00019999,2]
[360536379,1746858643492,-400.0,0.00019999,2]
[360536380,1746858643502,-245.26116556,0.00019999,2]
[360536381,1746858643511,-304.69,0.00019999,2]
[360536382,1746858643520,-400.0,0.00019999,2]
[360536383,1746858643529,-400.0,0.00019999,2]
[360536384,1746858643538,-450.0,0.00019999,2]
[360536385,1746858643547,-400.0,0.00019999,2]
[360536386,1746858643557,-425.73,0.00019999,2]
[360536387,1746858643566,-450.0,0.00019999,2]
[360536388,1746858643575,-343.71988781,0.00019999,2]
[360536389,1746858643584,-400.0,0.00019999,2]
[360536390,1746858643594,-400.0,0.00019999,2]
[360536391,1746858643603,-400.0,0.00019999,2]
[360536392,1746858643613,-415.26891197,0.00019999,2]
[360536393,1746858643623,-400.0,0.00019999,2]
[360536394,1746858643632,-400.0,0.00019999,2]
[360536395,1746858643642,-400.0,0.00019999,2]
[360536396,1746858643651,-400.0,0.00019999,2]
[360536397,1746858643660,-400.0,0.00019999,2]
[360536398,1746858643670,-400.0,0.00019999,2]
[360536399,1746858643679,-400.0,0.00019999,2]
[360536400,1746858643688,-400.0,0.00019999,2]
[360536401,1746858643697,-400.0,0.00019999,2]
[360536402,1746858643707,-400.0,0.00019999,2]
[360536403,1746858643716,-400.0,0.00019999,2]
[360536404,1746858643725,-400.0,0.00019999,2]
[360536405,1746858643734,-407.2,0.00019999,2]
[360536406,1746858643743,-400.0,0.00019999,2]
[360536407,1746858643752,-400.0,0.00019999,2]
[360536408,1746858643761,-400.0,0.00019999,2]
[360536409,1746858643770,-406.52,0.00019999,2]
[360536410,1746858643782,-400.0,0.00019999,2]
[360536411,1746858643791,-400.0,0.00019999,2]
[360536412,1746858643801,-400.0,0.00019999,2]
[360536413,1746858643810,-500.0,0.00019999,2]
[360536414,1746858643819,-400.0,0.00019999,2]
[360536415,1746858643828,-400.0,0.00019999,2]
[360536416,1746858643838,-400.0,0.00019999,2]
[360536417,1746858643847,-400.0,0.00019999,2]
[360536418,1746858643856,-542.19,0.00019999,2]
[360536419,1746858643866,-400.0,0.00019999,2]
[360536420,1746858643875,-400.0,0.00019999,2]
[360536421,1746858643885,-245.81,0.00019999,2]
[360536422,1746858643894,-400.0,0.00019999,2]
[360536423,1746858643903,-400.0,0.00019999,2]
[360536424,1746858643913,-400.0,0.00019999,2]
[360536425,1746858643922,-400.0,0.00019999,2]
[360536426,1746858643931,-373.08999999,0.00019999,2]
[360536427,1746858643940,-400.0,0.00019999,2]
[360536428,1746858643950,-549.44,0.00019999,2]
[360536429,1746858643959,-285.98689984,0.00019999,2]
[360536430,1746858643969,-400.0,0.00019999,2]
[360536431,1746858643978,-400.0,0.00019999,2]
[360536432,1746858643988,-400.0,0.00019999,2]
[360536433,1746858643998,-246.95046009,0.00019999,2]
[360536434,1746858644007,-302.05069204,0.00019999,2]
[360536435,1746858644016,-450.74109056,0.00019999,2]
[360536436,1746858644026,-400.0,0.00019999,2]
[360536437,1746858644035,-481.78047751,0.00019999,2]
[360536438,1746858644045,-450.0,0.00019999,2]
[360536439,1746858644054,-400.0,0.00019999,2]
[360536440,1746858644063,-400.0,0.00019999,2]
[360536441,1746858644073,-400.0,0.00019999,2]
[360536442,1746858644082,-429.42,0.00019999,2]
[360536443,1746858644092,-494.64882439,0.00019999,2]
[360536444,1746858644103,-267.28979017,0.00019999,2]
[360536445,1746858644112,-400.0,0.00019999,2]
[360536446,1746858644121,-450.0,0.00019999,2]
[360536447,1746858644131,-485.71687524,0.00019999,2]
[360536448,1746858644141,-400.0,0.00019999,2]
[360536449,1746858644151,-176.6,0.00019999,2]
[360536450,1746858644160,-400.0,0.00019999,2]
[360536451,1746858644170,-259.38,0.00019999,2]
[360536452,1746858644179,-450.0,0.00019999,2]
[360536453,1746858644188,-484.34013179,0.00019999,2]
[360536454,1746858644197,-42766.10506498,0.0002,2]
[360536455,1746858644373,-2823.81184455,0.0002,2]
[360536456,1746858644385,-9823.42123932,0.0002,2]
[360536457,1746858644395,-657.92138726,0.0002,2]
[360536458,1746858644406,-421.30399971,0.0002,2]
[360536459,1746858644418,-1032.5950003,0.0002,2]
[360536460,1746858644436,-594.96847343,0.0002,2]
[360536463,1746858644811,-698.86619156,0.000199,2]
[360536464,1746858644821,-406.60443047,0.00019999,2]
[360536465,1746858644831,-289.52937797,0.0002,2]
[360536466,1746858644843,-7243.6,0.0002,2]
[360536467,1746858645039,-118060.0000009,0.0002,2]
[360536486,1746858645881,-596.34999718,0.0002,2]
[360536487,1746858646176,-323.62249999,0.0002,2]
[360536488,1746858677156,1296.0,0.00017085,2]
[360536489,1746858678026,3414.0,0.0001717,2]
[360536490,1746858678843,2295.0,0.00017255,2]
[360536491,1746858679655,678.0,0.0001734,2]
[360536492,1746858680515,234.25332913,0.00017425,2]
[360536493,1746858680538,4432.74667087,0.00017425,2]
[360536494,1746858681354,208.0,0.0001751,2]
[360536495,1746858682195,981.0,0.00017595,2]
[360536496,1746858683079,1081.0,0.0001768,2]
[360536497,1746858736646,-157.70735956,0.00019746,2]
[360536498,1746858737241,243.0,0.00017085,2]
[360536499,1746858738072,4001.0,0.0001717,2]
[360536500,1746858739171,2308.0,0.00017255,2]
[360536501,1746858740518,4353.0,0.0001734,2]
[360536502,1746858741350,4812.0,0.00017425,2]
[360536503,1746858742159,2556.0,0.0001751,2]
[360536505,1746858760197,-6.45954944,0.00019746,2]
[360536508,1746858796885,404.0,0.00017085,2]
[360536510,1746858797893,3841.0,0.0001717,2]
[360536512,1746858857037,4450.0,0.00017085,2]
[360536513,1746858917055,2862.0,0.00017085,2]
[360536514,1746858945065,1206.84,0.00019182,2]
[360536516,1746858967255,419.43,0.00019158,2]
[360536517,1746858974601,168.75,0.00019158,2]
[360536518,1746858979188,508.50230983,0.00017085,2]
[360536519,1746859219650,183.76,0.00019126,2]
[360536521,1746859301517,1020.5,0.00019178,2]
[360536522,1746859371389,1000.0,0.00019137,2]
[360536523,1746859392723,250.0,0.00017,2]
[360536524,1746859393804,300.0,0.00019,2]
[360536525,1746859450471,-151.24781012,0.000197,15]
[360536526,1746859453907,-193.50316977,0.000197,15]
[360536527,1746859456726,353.94,0.00017201,2]
[360536528,1746859456945,353.94,0.00019465,2]
[360536529,1746859461298,-155.24902011,0.000197,15]
[360536530,1746859743026,250.0,0.00019094,2]
[360536531,1746859750595,200.0,0.00019094,2]
[360536543,1746859832045,-303.33273231,0.000198,2]
[360536544,1746859832055,-5.45726769,0.00019801,2]
[360536545,1746859832066,-244.54273231,0.00019801,2]
[360536546,1746859832075,-200.0,0.00019801,2]
[360536547,1746859832085,-500.0,0.00019873,2]
[360536548,1746859832094,-207.4,0.00019888,2]
[360536549,1746859832104,-1200.0,0.00019898,2]
[360536550,1746859832114,-300.0,0.00019898,2]
[360536551,1746859832123,-300.0,0.00019898,2]
[360536552,1746859832132,-500.0,0.00019899,2]
[360536553,1746859832142,-937.43932137,0.00019899,2]
[360536554,1746859832153,-5764.83045,0.00019899,2]
[360536555,1746859832163,-3569.541012,0.00019899,2]
[360536556,1746859832175,-6914.26421663,0.00019899,2]
[360536557,1746859832184,-366.554,0.00019899,2]
[360536558,1746859832193,-139.15704337,0.000199,2]
[360536559,1746859832204,-1244.15535,0.000199,2]
[360536560,1746859832225,-2557.91372212,0.000199,2]
[360536561,1746859832235,-790.5924099,0.000199,2]
[360536562,1746859832244,-1150.48849476,0.000199,2]
[360536563,1746859832254,-2720.5696,0.000199,2]
[360536564,1746859832263,-880.0,0.000199,2]
[360536565,1746859832273,-161.53155246,0.000199,2]
[360536566,1746859832282,-500.0,0.00019973,2]
[360536567,1746859832291,-5883.2619151,0.00019973,2]
[360536568,1746859832303,-658.6580849,0.00019973,2]
[360536569,1746859832312,-500.0,0.00019973,2]
[360536570,1746859832322,-500.0,0.00019973,2]
[360536571,1746859832331,-227.2769151,0.00019973,2]
[360536573,1746859832342,-272.7230849,0.00019973,2]
[360536574,1746859832351,-195.54236004,0.00019973,2]
[360536575,1746859832363,-304.45763996,0.00019973,2]
[360536576,1746859832372,-267.37477981,0.00019973,2]
[360536577,1746859832381,-500.0,0.00019973,2]
[360536578,1746859832390,-500.0,0.00019973,2]
[360536579,1746859832400,-500.0,0.00019973,2]
[360536580,1746859832409,-500.0,0.00019973,2]
[360536581,1746859832418,-3931.99574798,0.00019995,2]
[360536582,1746859832428,-1326.64420162,0.00019995,2]
[360536583,1746859832443,-989.49473875,0.00019995,2]
[360536584,1746859832454,-2475.883476,0.00019995,2]
[360536585,1746859832467,-7971.96559297,0.00019995,2]
[360536586,1746859832476,-704.1404481,0.00019996,2]
[360536587,1746859832486,-301.746574,0.00019996,2]
[360536588,1746859832495,-10861.802063,0.00019996,2]
[360536589,1746859832505,-1166.8260546,0.00019996,2]
[360536590,1746859832514,-29450.2452452,0.00019996,2]
[360536591,1746859832524,-400.0,0.00019998,2]
[360536592,1746859832534,-319.7,0.00019999,2]
[360536593,1746859832545,-494.72,0.00019999,2]
[360536594,1746859832554,-400.0,0.00019999,2]
[360536595,1746859832563,-400.0,0.00019999,2]
[360536596,1746859832572,-400.0,0.00019999,2]
[360536597,1746859832581,-400.0,0.00019999,2]
[360536598,1746859832590,-400.0,0.00019999,2]
[360536599,1746859832600,-400.0,0.00019999,2]
[360536600,1746859832609,-400.0,0.00019999,2]
[360536601,1746859832619,-308.0,0.00019999,2]
[360536602,1746859832628,-400.0,0.00019999,2]
[360536603,1746859832637,-400.0,0.00019999,2]
[360536604,1746859832646,-400.0,0.00019999,2]
[360536605,1746859832659,-480.68800379,0.00019999,2]
[360536606,1746859832668,-486.72783346,0.00019999,2]
[360536607,1746859832678,-400.0,0.00019999,2]
[360536608,1746859832687,-359.96261412,0.00019999,2]
[360536609,1746859832696,-500.0,0.00019999,2]
[360536610,1746859832707,-649.37512983,0.00019999,2]
[360536611,1746859832717,-500.0,0.00019999,2]
[360536612,1746859832726,-500.0,0.00019999,2]
[360536613,1746859832736,-500.0,0.00019999,2]
[360536614,1746859832746,-189.29926943,0.00019999,2]
[360536615,1746859832755,-199.58871545,0.00019999,2]
[360536616,1746859832764,-195.32050233,0.00019999,2]
[360536617,1746859832773,-435.98730144,0.00019999,2]
[360536618,1746859832783,-28788.90465078,0.0002,2]
[360536619,1746859832794,-10805.50191842,0.0002,2]
[360536620,1746859832803,-2074.61338246,0.0002,2]
[360536621,1746859832815,-58048.87722117,0.0002,2]
[360536622,1746859832828,-236550.0000018,0.0002,2]
[360536623,1746859832851,-630.24830038,0.0002,2]
[360536624,1746859832863,-1095.47233412,0.0002,2]
[360536625,1746859838366,-265.71883021,0.0002,2]
[360536632,1746859838421,-9522.60003416,0.0002,2]
[360536634,1746859838432,-2074.10097665,0.0002,2]
[360536647,1746859838543,-349.50975842,0.0002,2]
[360536649,1746859838554,-656.67,0.0002,2]
[360536651,1746859838566,-1594.10902335,0.0002,2]
[360536661,1746859838651,-2159.53259637,0.0002,2]
[360536684,1746859840034,-198.45468826,0.000199,3]
[360536685,1746859840044,-511.08466066,0.0002,2]
[360536686,1746859840055,-3866.95019455,0.0002,2]
[360536687,1746859840066,-1029.15734918,0.0002,2]
[360536688,1746859840131,-758.79780336,0.0002,2]
[360536689,1746859840148,-680.27,0.0002,2]
[360536690,1746859840236,-5562.02013546,0.0002,2]
[360536691,1746859840397,-367.03000001,0.0002,2]
[360536692,1746859840479,-911.93905103,0.0002,2]
[360536693,1746859840667,-6247.75364787,0.0002,2]
[360536694,1746859840681,-4939.780016,0.0002,2]
[360536695,1746859840692,-3070.5981233,0.0002,2]
[360536696,1746859840705,-3255.66817225,0.0002,2]
[360536720,1746859845901,-712.682,0.00019996,2]
[360536722,1746859845913,-596.9224401,0.00019996,2]
[360536724,1746859845922,-20158.5055599,0.0002,2]
[360536725,1746859846058,-651.55,0.0002,2]
[360536726,1746859846076,-2458.71551484,0.0002,2]
[360536727,1746859846087,-867.26658096,0.0002,2]
[360536728,1746859846098,-3104.0,0.0002,2]
[360536729,1746859846310,-572.86316319,0.0002,2]
[360536746,1746859877639,3122.0,0.00017085,2]
[360536747,1746859878432,4237.0,0.0001717,2]
[360536748,1746859937121,2515.0,0.00017085,2]
[360536749,1746860003125,179.05,0.00019236,2]
[360536750,1746860057220,2907.0,0.00017085,2]
[360536751,1746860280505,-246.03645304,0.000197,2]
[360536752,1746860342641,-278.30701727,0.00019699,2]
[360536754,1746860347440,-21.69298273,0.00019699,2]
[360536756,1746860359822,173.33,0.00018928,2]
[360536760,1746860395011,-164.249341,0.00019601,2]
[360536762,1746860401663,-114.057676,0.00019601,2]
[360536763,1746860401811,43.649684,0.00019699,2]
[360536764,1746860416588,-193.50316977,0.00019699,2]
[360536765,1746860471508,-233.29908279,0.000196,2]
[360536766,1746860476582,-233.29908279,0.000196,2]
[360536767,1746860491631,-70.55468842,0.000196,2]
[360536768,1746860548255,-318.47301193,0.000196,2]
[360536769,1746860551607,-148.12515307,0.000196,2]
[360536770,1746860578614,5917.46910903,0.000195,2]
[360536771,1746860603256,1000.0,0.00018906,2]
[360536772,1746860627605,-166.57,0.000196,2]
[360536773,1746860637467,-416.22696,0.000196,2]
[360536774,1746860637499,-962.84714623,0.00019699,2]
[360536775,1746860637530,-300.0,0.00019699,2]
[360536776,1746860637560,-200.0,0.000197,2]
[360536777,1746860637593,-7335.12436529,0.000197,2]
[360536778,1746860637623,-246.0364,0.000197,2]
[360536779,1746860637657,-45094.49962684,0.000197,5]
[360536780,1746860637687,-590.24667231,0.00019711,2]
[360536781,1746860637718,-7581.16081826,0.00019722,2]
[360536782,1746860637750,-7581.16081826,0.00019744,2]
[360536783,1746860637781,-7581.16081826,0.00019767,2]
[360536784,1746860637811,-207.4,0.00019788,2]
[360536785,1746860637842,-7581.16081826,0.00019789,2]
[360536786,1746860637873,-150.99,0.00019789,2]
[360536787,1746860637904,-999.99,0.00019789,2]
[360536788,1746860637934,-24880.06,0.00019789,2]
[360536789,1746860637964,-333.95,0.00019789,2]
[360536790,1746860637994,-9999.99,0.00019789,2]
[360536791,1746860638027,-1106.52522114,0.00019799,2]
[360536792,1746860638056,-173314.39671919,0.000198,2]
[360536793,1746860638086,-150.99,0.000198,2]
[360536794,1746860638116,-887.07,0.000198,2]
[360536795,1746860638148,-299.99,0.000198,7]
[360536796,1746860638181,-1106.52522111,0.0001981,2]
[360536797,1746860638215,-7581.16081826,0.00019811,2]
[360536798,1746860638245,-165.14,0.00019813,2]
[360536799,1746860638277,-1106.52522111,0.00019821,2]
[360536800,1746860638309,-7581.16081826,0.00019833,2]
[360536801,1746860638340,-7581.16081826,0.00019856,2]
[360536802,1746860638369,-400.0,0.00019877,2]
[360536803,1746860638403,-5592.47,0.00019877,2]
[360536804,1746860638433,-1000.0,0.00019877,2]
[360536805,1746860638464,-771.88,0.00019877,2]
[360536806,1746860638496,-430.82,0.00019877,2]
[360536807,1746860638525,-400.0,0.00019877,2]
[360536808,1746860638745,-400.0,0.00019877,2]
[360536809,1746860638776,-400.0,0.00019877,2]
[360536810,1746860638807,-400.0,0.00019877,2]
[360536811,1746860638837,-160.2928541,0.00019877,2]
[360536812,1746860638867,-400.0,0.00019877,2]
[360536813,1746860638902,-400.0,0.00019877,2]
[360536814,1746860638933,-450.0,0.00019877,2]
[360536815,1746860638965,-451.87246903,0.00019877,2]
[360536816,1746860638995,-400.0,0.00019877,2]
[360536817,1746860639026,-400.0,0.00019877,2]
[360536818,1746860639056,-400.0,0.00019877,2]
[360536819,1746860639087,-400.0,0.00019877,2]
[360536820,1746860639119,-7581.16081826,0.00019878,2]
[360536821,1746860639150,-293.244,0.00019895,2]
[360536822,1746860639181,-400.0,0.00019898,2]
[360536823,1746860639211,-400.0,0.00019898,2]
[360536824,1746860639241,-400.0,0.00019898,2]
[360536825,1746860639271,-307.31918687,0.00019898,2]
[360536826,1746860639300,-450.0,0.00019898,2]
[360536827,1746860639330,-882.31,0.00019898,2]
[360536828,1746860639360,-481.89572734,0.00019898,2]
[360536829,1746860639391,-400.0,0.00019898,2]
[360536830,1746860639421,-398.43815664,0.00019898,2]
[360536831,1746860639467,-151.8776193,0.00019899,2]
[360536832,1746860639503,-400.0,0.00019899,2]
[360536833,1746860639539,-500.0,0.00019899,2]
[360536834,1746860639571,-400.0,0.00019899,2]
[360536835,1746860639605,-400.0,0.00019899,2]
[360536836,1746860639639,-400.0,0.00019899,2]
[360536837,1746860639672,-400.0,0.00019899,2]
[360536838,1746860639704,-400.0,0.00019899,2]
[360536839,1746860639737,-400.0,0.00019899,2]
[360536840,1746860639770,-8849.09,0.00019899,2]
[360536841,1746860639803,-1434.04,0.00019899,2]
[360536842,1746860639835,-2602.98,0.00019899,2]
[360536843,1746860639866,-151.87761927,0.00019899,2]
[360536844,1746860639903,-151.87761927,0.000199,2]
[360536845,1746860639937,-3809.2832,0.000199,2]
[360536846,1746860639972,-1901.6699333,0.000199,2]
[360536847,1746860640006,-7581.16081826,0.000199,2]
[360536848,1746860640039,-151.87761927,0.000199,2]
[360536849,1746860640070,-661.62162274,0.000199,2]
[360536850,1746860640102,-5561.0,0.000199,5]
[360536851,1746860640133,-903.96,0.000199,2]
[360536852,1746860640165,-1155.86,0.000199,2]
[360536853,1746860640196,-297.68,0.000199,2]
[360536854,1746860640232,-150.04,0.000199,2]
[360536855,1746860640451,-307.34,0.000199,2]
[360536856,1746860640484,-188.94,0.000199,2]
[360536857,1746860640515,-705.18,0.000199,2]
[360536858,1746860640547,-150.0,0.000199,2]
[360536859,1746860640578,-150.0,0.000199,2]
[360536860,1746860640609,-162.47,0.000199,2]
[360536861,1746860640646,-456.95,0.000199,2]
[360536862,1746860640679,-150.0,0.000199,2]
[360536863,1746860640713,-803.1,0.000199,2]
[360536864,1746860640747,-700.44,0.000199,2]
[360536865,1746860640779,-1155.86,0.000199,2]
[360536866,1746860640810,-904.12,0.000199,2]
[360536867,1746860640840,-150.04,0.000199,2]
[360536868,1746860640872,-317.66,0.000199,2]
[360536869,1746860640909,-195.79693857,0.000199,2]
[360536870,1746860640943,-731.6440333,0.000199,2]
[360536871,1746860640978,-904.56,0.000199,2]
[360536872,1746860641010,-150.0,0.000199,2]
[360536873,1746860641041,-432.21,0.000199,2]
[360536874,1746860641072,-352.59,0.000199,2]
[360536875,1746860641103,-150.0,0.000199,2]
[360536876,1746860641136,-913.9,0.000199,2]
[360536877,1746860641169,-327.85,0.000199,2]
[360536878,1746860641201,-803.1,0.000199,2]
[360536879,1746860641233,-150.04,0.000199,2]
[360536880,1746860641265,-150.0,0.000199,2]
[360536881,1746860641298,-1155.86,0.000199,2]
[360536882,1746860641332,-343.93,0.000199,2]
[360536883,1746860641365,-175.5329935,0.000199,3]
[360536884,1746860641399,-452.28,0.000199,2]
[360536885,1746860641431,-803.1,0.000199,2]
[360536886,1746860641463,-162.47,0.000199,2]
[360536887,1746860641494,-352.59,0.000199,2]
[360536888,1746860641528,-2311.13,0.000199,2]
[360536889,1746860641559,-150.04,0.000199,2]
[360536890,1746860641591,-913.9,0.000199,2]
[360536891,1746860641622,-161.53155244,0.000199,2]
[360536892,1746860641656,-500.0,0.00019973,2]
[360536893,1746860641688,-500.0,0.00019973,2]
[360536894,1746860641720,-500.0,0.00019973,2]
[360536895,1746860641750,-500.0,0.00019973,2]
[360536896,1746860641781,-500.0,0.00019973,2]
[360536897,1746860641811,-500.0,0.00019973,2]
[360536898,1746860641843,-32148.2858673,0.00019996,2]
[360536899,1746860641878,-928.0089553,0.00019996,2]
[360536900,1746860641910,-1045.4333992,0.00019996,2]
[360536901,1746860641944,-500.0,0.00019998,2]
[360536902,1746860641974,-242.53919857,0.00019998,2]
[360536903,1746860642172,-231.44647145,0.00019998,2]
[360536904,1746860642208,-500.0,0.00019998,2]
[360536905,1746860642242,-500.0,0.00019998,2]
[360536906,1746860642275,-177.97137162,0.00019998,2]
[360536907,1746860642309,-354.56259088,0.00019998,2]
[360536908,1746860642343,-500.0,0.00019998,2]
[360536909,1746860642379,-218.05067847,0.00019998,2]
[360536910,1746860642411,-400.0,0.00019998,2]
[360536911,1746860642444,-400.0,0.00019998,2]
[360536912,1746860642477,-400.0,0.00019998,2]
[360536913,1746860642511,-5592.47,0.00019998,2]
[360536914,1746860642545,-5592.47,0.00019998,2]
[360536915,1746860642577,-882.31,0.00019998,2]
[360536916,1746860642609,-882.31,0.00019998,2]
[360536917,1746860642641,-1000.0,0.00019998,2]
[360536918,1746860642672,-1000.0,0.00019998,2]
[360536919,1746860642706,-771.88,0.00019998,2]
[360536920,1746860642739,-771.88,0.00019998,2]
[360536921,1746860642771,-430.82,0.00019998,2]
[360536922,1746860642802,-430.82,0.00019998,2]
[360536923,1746860642833,-275.90309253,0.00019998,2]
[360536924,1746860642864,-392.0,0.00019998,2]
[360536925,1746860642901,-322.31728151,0.00019998,2]
[360536926,1746860642932,-410.5798992,0.00019998,2]
[360536927,1746860642964,-400.0,0.00019998,2]
[360536928,1746860642995,-400.0,0.00019998,2]
[360536929,1746860643032,-420.68255936,0.00019998,2]
[360536930,1746860643065,-416.50013277,0.00019998,2]
[360536931,1746860643097,-419.19245018,0.00019998,2]
[360536932,1746860643133,-406.14296315,0.00019998,2]
[360536933,1746860643166,-430.59492441,0.00019998,2]
[360536934,1746860643200,-20396.93039005,0.00019999,2]
[360536935,1746860643233,-400.0,0.00019999,2]
[360536936,1746860643266,-400.0,0.00019999,2]
[360536937,1746860643300,-400.0,0.00019999,2]
[360536938,1746860643335,-400.0,0.00019999,2]
[360536939,1746860643369,-179.67069485,0.00019999,2]
[360536940,1746860643408,-400.0,0.00019999,2]
[360536941,1746860643440,-400.0,0.00019999,2]
[360536942,1746860643473,-455.77,0.00019999,2]
[360536943,1746860643508,-315.39,0.00019999,2]
[360536944,1746860643543,-400.0,0.00019999,2]
[360536945,1746860643576,-500.0,0.00019999,2]
[360536946,1746860643609,-450.0,0.00019999,2]
[360536947,1746860643643,-400.0,0.00019999,2]
[360536948,1746860643678,-400.0,0.00019999,2]
[360536949,1746860643712,-400.0,0.00019999,2]
[360536950,1746860643919,-400.0,0.00019999,2]
[360536951,1746860643954,-161.42,0.00019999,2]
[360536952,1746860643989,-359.10496022,0.00019999,2]
[360536953,1746860644024,-400.0,0.00019999,2]
[360536954,1746860644057,-400.0,0.00019999,2]
[360536955,1746860644092,-400.0,0.00019999,2]
[360536956,1746860644125,-400.0,0.00019999,2]
[360536957,1746860644161,-400.0,0.00019999,2]
[360536958,1746860644193,-430.12547238,0.00019999,2]
[360536959,1746860644227,-400.0,0.00019999,2]
[360536960,1746860644261,-400.0,0.00019999,2]
[360536961,1746860644296,-226.58390231,0.00019999,2]
[360536962,1746860644330,-400.0,0.00019999,2]
[360536963,1746860644364,-400.0,0.00019999,2]
[360536964,1746860644400,-400.0,0.00019999,2]
[360536965,1746860644434,-224.73619655,0.00019999,2]
[360536966,1746860644468,-517.15,0.00019999,2]
[360536967,1746860644503,-517.15,0.00019999,2]
[360536968,1746860644536,-517.15,0.00019999,2]
[360536969,1746860644569,-517.15,0.00019999,2]
[360536970,1746860644601,-517.15,0.00019999,2]
[360536971,1746860644637,-517.15,0.00019999,2]
[360536972,1746860644670,-517.15,0.00019999,2]
[360536973,1746860644702,-517.15,0.00019999,2]
[360536974,1746860644735,-517.15,0.00019999,2]
[360536975,1746860644768,-517.15,0.00019999,2]
[360536976,1746860644800,-517.15,0.00019999,2]
[360536977,1746860644833,-517.15,0.00019999,2]
[360536978,1746860644866,-517.15,0.00019999,2]
[360536979,1746860644906,-517.15,0.00019999,2]
[360536980,1746860644941,-517.15,0.00019999,2]
[360536981,1746860644974,-517.15,0.00019999,2]
[360536982,1746860645008,-517.15,0.00019999,2]
[360536983,1746860645041,-517.15,0.00019999,2]
[360536984,1746860645074,-517.15,0.00019999,2]
[360536985,1746860645110,-517.15,0.00019999,2]